[Event "XVI Memorial Lezcano Montalvo 2024"]
[Site "Gran Canaria"]
[Date "2024.03.24"]
[Round "2.4"]
[White "Omelja, Artem"]
[Black "Mendez Acosta, Alexander Jesus"]
[Result "1/2-1/2"]
[ECO "D46"]
[WhiteElo "2438"]
[BlackElo "2025"]
[Annotator "TA"]
[PlyCount "154"]
[EventDate "2024.03.23"]
[EventType "swiss"]
[EventCountry "ESP"]
[SourceTitle "playchess.com"]
[Source "ChessBase"]
[SourceQuality "1"]
[TimeControl "5400+30"]

{[%evp 32,154,21,29,25,20,41,36,43,40,51,34,39,36,22,14,12,18,11,11,13,12,12,11,10,8,8,4,6,6,7,7,7,3,7,8,21,0,23,12,10,9,27,15,18,52,36,25,184,187,208,195,210,225,241,234,235,226,315,281,298,243,708,636,1237,1216,1222,1253,991,617,4335,2277,5689,5697,5612,5575,1697,188,188,152,152,152,152,152,152,152,152,160,4903,76,656,648,619,610,587,0,0,0,0,0,0,0,0,0,0,0,0,0,0,0,0,0,0,0,0,0,0,0,0,0,0,0,0,0,0]} 1. d4 {[%emt 0:00:26]} d5 {[%emt 0:00:48]} 2. c4 {[%emt 0:00:11]} e6 {[%emt 0:00:40]} 3. Nc3 {[%emt 0:00:09]} c6 {[%emt 0:01:00]} 4. e3 {[%emt 0:00:42]} Nf6 {[%emt 0:00:24]} 5. Nf3 {[%emt 0:00:30]} Bd6 {[%emt 0:00:22]} 6. Bd3 {[%emt 0:00:18]} Nbd7 {[%emt 0:01:15]} 7. e4 {[%emt 0:00:39]} dxe4 {[%emt 0:12:46]} 8. Nxe4 {[%emt 0:00:06]} Nxe4 {[%emt 0:00:10]} 9. Bxe4 {[%emt 0:00:08]} e5 {[%emt 0:04:40]} 10. O-O {[%emt 0:02:38]} exd4 {[%emt 0:10:50]} 11. Qxd4 {[%emt 0:04:43]} Qf6 {[%emt 0:01:43]} 12. Be3 {[%emt 0:05:38]} O-O {[%emt 0:06:54]} 13. Rad1 {[%emt 0:02:25]} Bc7 {[%emt 0:01:58]} 14. Qd3 {[%emt 0:06:15]} h6 {[%emt 0:03:11]} 15. Bd4 {[%emt 0:01:45]} Ne5 {[%emt 0:01:42]} 16. Qc3 {[%emt 0:03:12]} Nxf3+ {[%emt 0:00:26]} 17. Bxf3 {[%emt 0:00:09]} Qg5 {[%emt 0:00:20]} 18. Rfe1 {[%emt 0:01:58]} Bg4 {[%emt 0:03:59]} 19. Bxg4 {[%emt 0:03:25]} Qxg4 {[%emt 0:00:12]} 20. h3 {[%emt 0:00:57]} Qg5 {[%emt 0:03:12]} 21. Re4 {[%emt 0:05:10]} f5 {[%emt 0:09:43]} 22. Re6 {[%emt 0:07:40]} Rad8 {[%emt 0:06:30]} 23. Rde1 {[%emt 0:02:07]} Qf4 {[%emt 0:03:18]} 24. Be5 {[%emt 0:05:04]} (24. Bxa7 $2 {loses.} Qh2+ 25. Kf1 Bf4 $19 (25... Qh1+ 26. Ke2 $17)) 24... Bxe5 {[%emt 0:00:30]} 25. R6xe5 {[%emt 0:01:07]} Rd2 {[%emt 0:01:38]} 26. R5e2 {[%emt 0:00:14]} Rfd8 {[%emt 0:01:31]} 27. g3 {[%emt 0:00:52]} Qd4 {[%emt 0:02:09]} 28. Re8+ {[%emt 0:04:34]} Rxe8 {[%emt 0:03:05]} 29. Rxe8+ {[%emt 0:00:12]} Kf7 {[%emt 0:00:23]} 30. Qxd4 {[%emt 0:00:07]} Rxd4 {[%emt 0:00:07]} 31. Rb8 {[%emt 0:00:22]} Rd7 {[%emt 0:01:00]} 32. Kf1 {[%emt 0:00:36]} Re7 {[%emt 0:00:56]} 33. b3 {[%emt 0:02:13]} c5 {[%emt 0:03:03]} 34. Kg2 {[%emt 0:00:43]} g6 {[%emt 0:02:33]} 35. Kf3 {[%emt 0:00:42]} Kg7 {[%emt 0:00:23]} 36. h4 {[%emt 0:00:59]} Kf7 {[%emt 0:01:29]} 37. Rh8 {[%emt 0:01:32]} Kg7 {[%emt 0:01:17]} 38. Rc8 {[%emt 0:01:11]} b6 {[%emt 0:00:11]} 39. Rc6 {[%emt 0:00:57]} h5 $2 {[%emt 0:04:56]} (39... Rd7 $1 $11 {and Black has nothing to worry.}) 40. a4 $1 $18 {[%emt 0:05:18]} Re1 {[%emt 0:07:45] [#]} 41. a5 $1 {[%emt 0:01:39]} bxa5 {[%emt 0:01:29]} 42. Rxc5 {[%emt 0:01:04]} Rb1 {[%emt 0:00:17]} 43. Rxa5 {[%emt 0:00:50]} Rxb3+ {[%emt 0:00:26]} 44. Kf4 {[%emt 0:00:07]} Rb7 {[%emt 0:00:42]} 45. Kg5 {[%emt 0:00:51]} Rc7 {[%emt 0:00:28]} 46. f4 {[%emt 0:10:29]} Kh7 $2 {[%emt 0:00:38]} (46... Kf7 47. Kh6 Rxc4) 47. Ra6 $18 {[%emt 0:00:46]} Rg7 {[%emt 0:00:27]} 48. Rc6 {[%emt 0:03:40]} a5 {[%emt 0:00:32]} 49. Ra6 {[%emt 0:00:18]} Rc7 {[%emt 0:00:05]} 50. Rxa5 {[%emt 0:00:22]} ({Not} 50. Rxg6 Rxc4 51. Kxh5 Rc3 $11) 50... Rxc4 {[%emt 0:00:17]} 51. Ra7+ {[%emt 0:00:07]} Kg8 {[%emt 0:00:49]} 52. Kxg6 {[%emt 0:05:38]} Rc6+ {[%emt 0:00:06]} 53. Kxh5 {[%emt 0:00:54]} Rc3 {[%emt 0:00:04]} 54. Ra6 $2 {[%emt 0:00:12]} (54. g4) 54... Kf7 {[%emt 0:00:47]} 55. Rg6 {[%emt 0:01:00]} Ra3 {[%emt 0:00:25]} 56. Kh6 {[%emt 0:00:40]} Rb3 {[%emt 0:00:32]} 57. h5 {[%emt 0:01:21]} Ra3 {[%emt 0:00:29]} 58. Rg7+ {[%emt 0:07:22]} Kf6 {[%emt 0:00:22]} 59. Kh7 {[%emt 0:00:16]} Ra8 $2 {[%emt 0:01:11]} (59... Rd3 $16 60. Rg6+ Kf7) 60. h6 $2 {[%emt 0:01:34]} (60. Rg6+ $18 {is the precise move to win.} Kf7 61. Rg5) 60... Rf8 $2 {[%emt 0:00:46][%mdl 8192]} (60... Ra1 $16) 61. Rg8 {[%emt 0:01:03]} Rf7+ {[%emt 0:00:23] [#]} 62. Kh8 $1 {[%emt 0:00:14]} Ra7 {[%emt 0:00:20]} 63. Rf8+ $2 {[%emt 0:02:43]} ({White must play} 63. h7 $18) 63... Kg6 $11 {[%emt 0:00:53]} 64. Kg8 {[%emt 0:00:14]} Re7 {[%emt 0:00:21]} 65. Rb8 {[%emt 0:01:10]} Kxh6 {[%emt 0:00:13]} 66. Rb6+ {[%emt 0:00:21]} Kh5 {[%emt 0:00:11]} 67. Rf6 {[%emt 0:00:36]} Kg4 {[%emt 0:01:01]} 68. Rg6+ {[%emt 0:00:08]} Kf3 {[%emt 0:00:31]} 69. Rg5 {[%emt 0:00:23]} Ra7 {[%emt 0:00:16]} 70. Rxf5 {[%emt 0:00:32]} Kxg3 {[%emt 0:00:07]} 71. Rf8 {[%emt 0:00:52]} Kg4 {[%emt 0:00:08]} 72. f5 {[%emt 0:00:32]} Kg5 {[%emt 0:00:06]} 73. f6 {[%emt 0:00:31]} Kg6 {[%emt 0:00:06]} 74. f7 {[%emt 0:00:14]} Rb7 {[%emt 0:00:14]} 75. Ra8 {[%emt 0:00:17]} Rxf7 {[%emt 0:00:12]} 76. Ra6+ {[%emt 0:00:03]} Rf6 {[%emt 0:00:08]} 77. Rxf6+ {[%emt 0:00:07]} Kxf6 {[%emt 0:03:59]} 1/2-1/2

[Event "XVI Memorial Lezcano Montalvo 2024"]
[Site "Gran Canaria"]
[Date "2024.03.24"]
[Round "2.5"]
[White "Lizzul Coppe, Mirko"]
[Black "Strikovic, Aleksa"]
[Result "0-1"]
[ECO "B28"]
[WhiteElo "2027"]
[BlackElo "2430"]
[Annotator "TA"]
[PlyCount "102"]
[EventDate "2024.03.23"]
[EventType "swiss"]
[EventCountry "ESP"]
[SourceTitle "playchess.com"]
[Source "ChessBase"]
[SourceQuality "1"]
[TimeControl "5400+30"]

{[%evp 10,102,39,21,50,19,56,74,72,78,85,10,22,12,14,12,32,28,36,33,39,25,23,17,41,37,48,19,25,0,59,37,56,26,94,7,62,70,74,15,20,-52,0,0,11,-18,-16,-26,-18,-69,-85,-70,-78,-98,-32,-62,0,-578,-541,-541,-546,-967,-968,-960,-789,-2315,-2114,-1750,-258,-258,-266,-286,-203,-587,-598,-586,-566,-558,-580,-562,-480,-469,-533,-541,-522,-927,-915,-960,-960,-960,-927,-29987,-29988,-29988,-29989]} 1. e4 {[%emt 0:00:03]} c5 {[%emt 0:00:05]} 2. Nf3 {[%emt 0:00:05]} a6 {[%emt 0:00:06]} 3. c3 {[%emt 0:01:05]} Nf6 {[%emt 0:01:08][%cal Bg8f6,Bf6d5,Bd5b6][%mdl 32]} 4. e5 {[%emt 0:02:10]} Nd5 {[%emt 0:00:04]} 5. d4 {[%emt 0:03:47]} cxd4 {[%emt 0:00:07]} 6. cxd4 {[%emt 0:05:13]} Nc6 {[%emt 0:01:33]} 7. Bc4 {[%emt 0:06:07]} Nb6 {[%emt 0:03:59] [#]} 8. Bxf7+ {[%emt 0:28:15]} Kxf7 {[%emt 0:00:46] White is better.} 9. Ng5+ $1 {[%emt 0:01:04]} Kg8 {[%emt 0:02:36] [#] And now ...d5 would win.} 10. Qf3 {[%emt 0:01:16]} (10. Qh5 $1 $16 {[%csl Gg5][%cal Rh5f7]} g6 (10... Nxd4 11. Qf7#) 11. Qf3) 10... Qe8 $11 {[%emt 0:01:07][%cal Od7d5]} 11. Qb3+ {[%emt 0:00:14]} e6 $1 {[%emt 0:00:59]} 12. Qxb6 {[%emt 0:00:13]} Nb4 {[%emt 0:01:55]} 13. Na3 {[%emt 0:03:10] Prevents Nc2+} h6 {[%emt 0:19:44]} 14. Nf3 {[%emt 0:01:20]} Nd5 {[%emt 0:00:05]} 15. Qb3 {[%emt 0:00:41]} b5 {[%emt 0:00:04] Dodges Nc4} 16. O-O {[%emt 0:02:03]} Bb7 {[%emt 0:01:14]} 17. Bd2 {[%emt 0:05:41]} Be7 {[%emt 0:05:44]} 18. Nc2 {[%emt 0:10:51]} Qg6 {[%emt 0:01:32]} 19. Nfe1 {[%emt 0:03:49]} Rf8 {[%emt 0:01:37]} (19... Kh7 $11) 20. Qg3 {[%emt 0:02:40]} Qh5 {[%emt 0:01:35][%cal Oa6a5]} 21. f4 {[%emt 0:02:27]} Bh4 {[%emt 0:21:58] [#]} (21... Kh7 $11 {keeps the balance.}) 22. Qf3 {[%emt 0:06:07]} (22. Qh3 $1 $16) 22... Qg6 {[%emt 0:00:35]} (22... Qxf3 $1 $11 23. Nxf3 (23. Rxf3 Rc8 $11) 23... Bd8) 23. Qd3 $14 {[%emt 0:01:39]} Rf5 {[%emt 0:02:55]} 24. Nf3 {[%emt 0:01:27]} (24. Rc1 $16) 24... Be7 $11 {[%emt 0:02:13][%cal Og6h5]} 25. Kf2 {[%emt 0:04:00]} (25. Rf2 $11) 25... Kh7 {[%emt 0:01:06]} (25... Qh5 $15) 26. g3 {[%emt 0:01:56]} Qh5 {[%emt 0:01:21]} 27. h4 {[%emt 0:04:14]} Rhf8 {[%emt 0:01:46][%mdl 1024] Black has compensation.} 28. Rg1 {[%emt 0:00:37]} Qg4 {[%emt 0:00:54]} 29. Nh2 {[%emt 0:01:02]} ({White should play} 29. Nce1 $11) 29... Qh3 $15 {[%emt 0:02:07]} 30. Nf3 {[%emt 0:00:43]} Kg8 $36 {[%emt 0:00:32][%cal Oe7h4][%mdl 2048] Keeping White busy.} 31. Nce1 {[%emt 0:01:17]} Qg4 {[%emt 0:07:07] Black has more active pieces.} (31... d6 $17 {Strongly threatening ...dxe5.} 32. Qf1 Qg4) 32. Ng2 {[%emt 0:00:32]} d6 {[%emt 0:01:12]} (32... Bd8 $15) 33. Nh2 $2 {[%emt 0:00:38][%mdl 8192] Black converts the advantage convincingly.} (33. Qe2 $11) 33... Qh3 $19 {[%emt 0:01:57]} 34. Nf3 {[%emt 0:00:24]} dxe5 {[%emt 0:00:27]} 35. Nxe5 {[%emt 0:00:26] [#]} Rxe5 {[%emt 0:00:40][%mdl 512]} 36. dxe5 {[%emt 0:00:16]} Bc5+ {[%emt 0:00:02]} 37. Be3 {[%emt 0:00:37]} Nxe3 {[%emt 0:03:48]} 38. Nxe3 {[%emt 0:00:10]} Qh2+ $2 {[%emt 0:00:28]} (38... Rxf4+ 39. Ke1 Rd4 40. Qxd4 Bxd4) 39. Kf1 {[%emt 0:01:41]} Qxb2 {[%emt 0:00:26]} 40. Rd1 {[%emt 0:00:00]} Qxe5 {[%emt 0:06:14]} 41. Ke2 {[%emt 0:00:24]} (41. Re1 {is a better chance.}) 41... Qh5+ {[%emt 0:00:02]} 42. Kd2 {[%emt 0:00:31]} Rc8 {[%emt 0:00:48]} (42... Qf3 $2 43. Nc2 $19) 43. Nc2 {[%emt 0:00:32] Wards off Bb4+} Bxg1 {[%emt 0:02:11]} 44. Rxg1 {[%emt 0:00:01]} Qc5 {[%emt 0:00:11] aiming for ...Qf2+.} 45. Re1 {[%emt 0:00:39]} Bd5 {[%emt 0:00:05][%cal Ob5b4]} 46. a3 {[%emt 0:00:43]} a5 {[%emt 0:00:06]} 47. Re5 {[%emt 0:00:36]} b4 {[%emt 0:00:33]} 48. axb4 {[%emt 0:00:14]} axb4 {[%emt 0:00:01] White must now prevent ...Qf2+.} 49. f5 {[%emt 0:00:22]} b3 {[%emt 0:00:32]} 50. Ne3 {[%emt 0:00:51]} Qc1+ {[%emt 0:00:08]} 51. Ke2 {[%emt 0:00:05]} Qb2+ {[%emt 0:07:35] Weighted Error Value: White=0.90/Black=0.25 (precise) .  Loses game:     	White=1     	---        Mistake:       	White=6     	Black=6      Inaccurate:     	White=7     	Black=1      OK:         	White=18    	Black=11     Best:        	---       	Black=5      Strong:       	White=1     	Black=1      Brilliant:      	---       	Black=1} 0-1

[Event "XVI Memorial Lezcano Montalvo 2024"]
[Site "Gran Canaria"]
[Date "2024.03.24"]
[Round "2.6"]
[White "Yankelevich, Lev"]
[Black "Bergero, Simone"]
[Result "1-0"]
[ECO "E01"]
[WhiteElo "2412"]
[BlackElo "2022"]
[Annotator "TA"]
[PlyCount "63"]
[EventDate "2024.03.23"]
[EventType "swiss"]
[EventCountry "ESP"]
[SourceTitle "playchess.com"]
[Source "ChessBase"]
[SourceQuality "1"]
[TimeControl "5400+30"]

{[%evp 11,63,16,22,16,50,38,37,45,50,55,65,64,57,47,155,83,193,192,187,186,183,76,469,410,447,463,411,314,410,408,427,435,436,414,502,479,550,570,570,574,656,601,691,660,706,585,568,492,457,389,839,840,788,780]} 1. Nf3 {[%emt 0:00:23]} Nf6 {[%emt 0:00:05]} 2. c4 {[%emt 0:00:38]} e6 {[%emt 0:00:21]} 3. g3 {[%emt 0:00:35]} d5 {[%emt 0:01:11]} 4. Bg2 {[%emt 0:00:31]} Nbd7 {[%emt 0:03:24]} 5. d4 {[%emt 0:06:05]} Bb4+ {[%emt 0:00:57]} 6. Nbd2 {[%emt 0:03:14]} O-O {[%emt 0:03:26]} 7. O-O {[%emt 0:00:10]} c6 {[%emt 0:06:35]} 8. Qc2 {[%emt 0:01:04]} Re8 {[%emt 0:09:31]} 9. Rd1 {[%emt 0:03:32] White is slightly better.} Qe7 {[%emt 0:20:37]} 10. e4 {[%emt 0:06:26]} e5 {[%emt 0:01:38]} 11. cxd5 {[%emt 0:25:52]} cxd5 {[%emt 0:00:48]} 12. exd5 {[%emt 0:00:25]} Nxd5 {[%emt 0:05:17]} (12... e4 $14 13. Re1 Nb6) 13. a3 {[%emt 0:10:48]} ({Better is} 13. dxe5 {Hoping for Nf1.} Nxe5 14. Nxe5 Qxe5 15. Nf3 (15. Nc4 Qe1+ 16. Bf1 Qe6 $14)) 13... e4 {[%emt 0:20:47]} (13... Bxd2 $16 14. Nxd2 N5f6) 14. Nxe4 $18 {[%emt 0:02:01]} Qxe4 {[%emt 0:01:17]} 15. Qxe4 {[%emt 0:04:27]} Rxe4 {[%emt 0:00:04]} 16. Ng5 {[%emt 0:05:37]} (16. Ne5 $18 {and White stays clearly on top.} Re2 (16... Nxe5 $2 17. Bxe4 Be7 18. dxe5 $18) 17. Bxd5 Nxe5 18. axb4) 16... Nc3 {[%emt 0:04:35][%mdl 8192] [#] This move loses the game for Black.} 17. Nxe4 {[%emt 0:04:24]} (17. Bxe4 Nxe4 18. Nxe4 (18. axb4 Nef6 $18) 18... Bf8 $18) 17... Nxd1 {[%emt 0:01:59]} 18. axb4 {[%emt 0:00:04]} Nb6 {[%emt 0:00:04]} 19. Nd6 {[%emt 0:06:14][%cal Be4d6,Bd6b7,Bb7c5][%mdl 32] Repels Bf5} Bg4 {[%emt 0:01:48] Black is weak on the dark squares} 20. h3 {[%emt 0:00:54]} ({But not} 20. Nxb7 Re8 21. Bf1 (21. Rxa7 {leads to mate.} Re1+ 22. Bf1 Bh3) 21... Re1 $18) (20. Bxb7 Rd8 $18) 20... Be2 {[%emt 0:00:23]} 21. Nxb7 {[%emt 0:01:13]} ({Much less strong is} 21. Bxb7 Rd8 $18) 21... Rc8 {[%emt 0:00:54]} 22. d5 {[%emt 0:01:59][%cal Bd4d5,Bd5d6][%mdl 32]} Rc2 {[%emt 0:00:56]} 23. d6 {[%emt 0:04:59]} a6 {[%emt 0:02:41]} 24. Nc5 {[%emt 0:02:05]} Bb5 {[%emt 0:00:18]} 25. Nxa6 {[%emt 0:02:21]} h5 {[%emt 0:01:57]} 26. Nc5 {[%emt 0:02:23]} h4 {[%emt 0:07:24]} 27. gxh4 {[%emt 0:00:18]} Nxb2 {[%emt 0:00:54]} 28. Bf1 {[%emt 0:03:39]} N2c4 {[%emt 0:00:44]} 29. Bd3 {[%emt 0:00:56]} Rc3 {[%emt 0:00:26]} 30. Bb2 {[%emt 0:00:53]} Nxb2 {[%emt 0:00:55] [#]} (30... Rxd3 31. Nxd3 Nxd6) 31. Bxb5 {[%emt 0:00:04]} N2c4 {[%emt 0:00:44]} 32. d7 {[%emt 0:00:21] Weighted Error Value: White=0.32/Black=0.74.  Loses game:     	---       	Black=1      Mistake:       	White=2     	Black=3      Inaccurate:     	---       	Black=2      OK:         	White=10    	Black=6      Best:        	White=1     	Black=1} 1-0

[Event "XVI Memorial Lezcano Montalvo 2024"]
[Site "Gran Canaria"]
[Date "2024.03.24"]
[Round "2.7"]
[White "Sarmiento Afonso, Santiago"]
[Black "Fiorito, Joaquin"]
[Result "0-1"]
[ECO "A06"]
[WhiteElo "2023"]
[BlackElo "2409"]
[Annotator "TA"]
[PlyCount "63"]
[EventDate "2024.03.23"]
[EventType "swiss"]
[EventCountry "ESP"]
[SourceTitle "playchess.com"]
[Source "ChessBase"]
[SourceQuality "1"]
[TimeControl "5400+30"]

{[%evp 9,63,7,0,-2,16,0,1,0,5,0,0,0,0,0,0,0,0,0,0,0,7,-20,-25,-99,-64,-97,-84,-179,-156,-174,-163,-269,-270,-341,-341,-358,-366,-564,-549,-576,-577,-562,-550,-741,-451,-435,-247,-935,-422,-382,-353,-780,-696,-6079,-5589,-29994]} 1. b3 {[%emt 0:00:07]} d5 {[%emt 0:04:16]} 2. Bb2 {[%emt 0:00:25]} Bf5 {[%emt 0:00:35]} 3. e3 {[%emt 0:00:19]} e6 {[%emt 0:00:10]} 4. Nf3 {[%emt 0:00:16]} Nf6 {[%emt 0:00:35]} 5. h3 {[%emt 0:05:53]} h6 {[%emt 0:00:16]} 6. d4 {[%emt 0:00:19]} a5 {[%emt 0:01:46]} 7. a3 {[%emt 0:00:31]} Bd6 {[%emt 0:01:02]} 8. c4 {[%emt 0:00:39] The position is equal.} c6 {[%emt 0:00:17]} 9. Nc3 {[%emt 0:03:28]} O-O {[%emt 0:01:17]} 10. Bd3 {[%emt 0:01:56]} Ne4 {[%emt 0:02:22]} 11. Bxe4 {[%emt 0:04:04]} Bxe4 {[%emt 0:00:50]} 12. Nxe4 {[%emt 0:00:51]} dxe4 {[%emt 0:00:05]} 13. Nd2 {[%emt 0:03:23]} f5 {[%emt 0:00:09]} 14. Qc2 {[%emt 0:01:02]} Qe7 {[%emt 0:00:50]} 15. O-O {[%emt 0:26:40]} (15. c5 $5 Bc7 $8 16. O-O-O $11) 15... Nd7 {[%emt 0:01:06]} 16. f4 {[%emt 0:04:57]} (16. b4 $11) 16... Nf6 {[%emt 0:00:44] Black converts the advantage convincingly.} 17. Rf2 {[%emt 0:03:43][%cal Og2g4]} g5 {[%emt 0:03:30] Black is more active.} 18. g3 {[%emt 0:00:10]} (18. Nf1 $17) 18... gxf4 $19 {[%emt 0:00:14]} 19. gxf4 {[%emt 0:00:06]} Kh7 {[%emt 0:00:08]} 20. Kh1 {[%emt 0:07:56]} (20. Kh2 $142) 20... Rg8 {[%emt 0:00:45] ...Rg3 is the strong threat.} 21. Nf1 {[%emt 0:01:55]} Nh5 {[%emt 0:00:56]} 22. c5 {[%emt 0:03:32]} Bc7 {[%emt 0:01:10] [#] And now ...Qh4 would win.} 23. d5 {[%emt 0:20:01]} (23. Rg2 $142) 23... cxd5 {[%emt 0:00:28]} 24. c6 {[%emt 0:01:03]} bxc6 {[%emt 0:00:42]} 25. Qxc6 {[%emt 0:00:42]} Rac8 {[%emt 0:00:14][%cal Oc7f4] Strongly threatening ...Bxf4!} 26. Qb7 {[%emt 0:00:12]} Rb8 {[%emt 0:04:42]} 27. Qa7 {[%emt 0:01:53]} Bd6 $40 {[%emt 0:01:18][%mdl 128] Black goes for the king.} ({Weaker is} 27... Rxb3 28. Rc1 Bd6 29. Qxe7+ Bxe7 30. Rc7 $11) (27... Rbd8 $142 {aiming for ...Rd7.} 28. Ra2 Rd7) 28. Qd4 $2 {[%emt 0:01:03]} (28. Qxe7+ Bxe7 29. b4) 28... Ng3+ {[%emt 0:01:33]} (28... Rxb3 $142 29. Rc1 Bxf4 (29... Bxa3 $2 30. Bxa3 Rxa3 31. Kh2 $19)) 29. Nxg3 {[%emt 0:04:54]} Rxg3 {[%emt 0:00:02]} 30. Rh2 $2 {[%emt 0:00:36]} (30. Rg1 Rxh3+ 31. Kg2) 30... Rbg8 {[%emt 0:00:11]} (30... Rxb3 $2 {loses.} 31. Qh8+ Kg6 32. Qg8+ Kh5 33. Qxg3 $18) 31. Rc1 {[%emt 0:00:50] [#] Prevents Bc5} Bc5 $1 {[%emt 0:00:45][%mdl 512]} 32. Qd3 {[%emt 0:03:04] Weighted Error Value: White=0.98/Black=0.51.  Mistake:       	White=6     	Black=1      Inaccurate:     	White=4     	Black=2      OK:         	White=5     	Black=10     Best:        	White=1     	Black=3} (32. Qd1 Bxe3) 0-1

[Event "XVI Memorial Lezcano Montalvo 2024"]
[Site "Gran Canaria"]
[Date "2024.03.24"]
[Round "2.8"]
[White "Tutisani, Noe"]
[Black "Cruz Pino, Adrian"]
[Result "1-0"]
[ECO "C18"]
[WhiteElo "2405"]
[BlackElo "2015"]
[Annotator "TA"]
[PlyCount "101"]
[EventDate "2024.03.23"]
[EventType "swiss"]
[EventCountry "ESP"]
[SourceTitle "playchess.com"]
[Source "ChessBase"]
[SourceQuality "1"]
[TimeControl "5400+30"]

{[%evp 19,101,0,0,0,21,17,22,25,25,26,72,58,67,55,89,68,70,67,70,63,68,0,64,61,180,179,174,187,175,105,186,111,188,146,162,141,148,138,146,141,154,127,128,116,125,106,150,156,163,163,155,89,81,83,147,137,135,94,102,108,197,193,296,288,306,286,362,367,561,528,671,640,699,705,914,647,570,0,839,866,1398,1345,1534,1360]} 1. e4 {[%emt 0:00:03]} e6 {[%emt 0:00:21]} 2. d4 {[%emt 0:00:04]} d5 {[%emt 0:00:10]} 3. Nc3 {[%emt 0:00:05]} Bb4 {[%emt 0:00:13]} 4. e5 {[%emt 0:00:05]} Ne7 {[%emt 0:01:01]} 5. a3 {[%emt 0:00:04]} Bxc3+ {[%emt 0:00:11]} 6. bxc3 {[%emt 0:00:04]} c5 {[%emt 0:00:11]} 7. h4 {[%emt 0:00:04]} Nbc6 {[%emt 0:02:12]} 8. h5 {[%emt 0:02:16]} h6 {[%emt 0:01:12]} 9. Nf3 {[%emt 0:00:07]} Bd7 {[%emt 0:01:04]} 10. Be2 {[%emt 0:04:06]} Qc7 {[%emt 0:06:09]} 11. Rh3 {[%emt 0:00:04]} O-O-O {[%emt 0:02:10]} 12. Kf1 {[%emt 0:02:45]} c4 {[%emt 0:01:16]} 13. a4 {[%emt 0:04:08] The position is equal.} f6 {[%emt 0:03:45][%cal Rf6e5]} 14. Ba3 {[%emt 0:00:03]} Rde8 {[%emt 0:05:09]} (14... Be8 $11) 15. Bd6 $16 {[%emt 0:02:15]} Qa5 {[%emt 0:00:11]} 16. Nh4 {[%emt 0:00:07]} Rhg8 {[%emt 0:15:49]} 17. Rg3 {[%emt 0:10:50]} fxe5 {[%emt 0:15:12]} 18. dxe5 {[%emt 0:00:06]} Nd8 {[%emt 0:02:25]} 19. Bb4 {[%emt 0:32:45] White has more active pieces.} Qc7 {[%emt 0:03:26]} 20. Bd6 {[%emt 0:05:50]} Qa5 {[%emt 0:00:11]} 21. Qc1 $36 {[%emt 0:03:55][%mdl 2048] White is pushing.} Nf5 {[%emt 0:09:50]} (21... Nf7 $14) 22. Nxf5 $18 {[%emt 0:00:06]} exf5 {[%emt 0:00:01]} 23. f4 {[%emt 0:04:06]} Ne6 {[%emt 0:01:38]} 24. Bb4 {[%emt 0:03:33]} ({White should try} 24. Qd2 $18) 24... Qb6 {[%emt 0:02:52]} (24... Qd8 $16) 25. a5 {[%emt 0:05:57]} (25. Rg6 $18) 25... Qb5 {[%emt 0:05:38]} (25... Qd8 $16) 26. Rb1 {[%emt 0:00:18]} Nc5 {[%emt 0:04:26][%cal Og7g5]} 27. Bxc5 {[%emt 0:01:21]} Qxc5 {[%emt 0:00:03]} 28. Qb2 {[%emt 0:00:04]} Bc6 {[%emt 0:00:40]} 29. Rg6 {[%emt 0:01:32]} Re7 {[%emt 0:00:58][%cal Og8d8,Be8e7,Be7c7,Bc7c5,Bc5b5][%mdl 32]} 30. Bf3 {[%emt 0:03:03]} Rd8 {[%emt 0:00:21]} 31. Qb4 {[%emt 0:01:43]} Qxb4 {[%emt 0:00:56]} 32. Rxb4 {[%emt 0:00:03][%cal Oa5a6]} (32. cxb4 Be8) 32... Rc7 {[%emt 0:04:04]} 33. Kf2 {[%emt 0:03:01]} Be8 {[%emt 0:03:16] [#]} 34. Rg3 {[%emt 0:00:04]} Rdd7 {[%emt 0:00:23]} 35. Ke3 {[%emt 0:00:14]} (35. Rb5 $142) 35... Rc5 $16 {[%emt 0:01:06]} 36. Ra4 {[%emt 0:03:06]} Re7 {[%emt 0:02:12]} ({Black should play} 36... Rb5) 37. Ra1 {[%emt 0:00:24]} Rb5 {[%emt 0:00:12]} 38. Kd4 {[%emt 0:00:20]} Kc7 {[%emt 0:01:17]} 39. Rh3 {[%emt 0:01:16][%cal Oh3h2]} (39. Bxd5 $2 Rd7 (39... Bxh5 $2 40. Ra4 $18) 40. Kxc4 Rbxd5 $19 (40... Rdxd5 $2 41. Rxg7+ Rd7 42. Rxd7+ Bxd7 43. a6 $19) (40... Rdxd5 $2 41. Rxg7+ Rd7 42. Rxd7+ Bxd7 43. a6 $19)) 39... a6 {[%emt 0:02:15]} (39... Rb2 $16) 40. Rhh1 $18 {[%emt 0:00:10][%cal Oh1b1]} (40. Bxd5 $2 Rd7 41. Kxc4 Rdxd5 $19) 40... b6 {[%emt 0:00:30]} (40... Rb2 $142 41. Bxd5 (41. Kxd5 Bc6+ 42. Kxc4 Bxf3 $18) 41... Rxc2 42. Kxc4 Rf2) 41. axb6+ {[%emt 0:00:07]} (41. Bxd5 $2 Rd7 42. axb6+ Kxb6 $19) 41... Kxb6 {[%emt 0:00:03]} 42. Rhb1 {[%emt 0:00:05]} (42. Bxd5 $2 Rd7 43. Ke3 Rbxd5 $19 (43... Rdxd5 $2 44. Raf1 $19)) 42... Bc6 {[%emt 0:00:20]} 43. Rxb5+ {[%emt 0:00:06]} (43. g4 fxg4 44. Rxb5+ (44. Bxg4 Rf7 $18) 44... Bxb5 45. Bxg4 (45. Bxd5 Be8 $18) 45... Rf7) 43... axb5 {[%emt 0:00:03][%mdl 4096] Endgame. KRB-KRB} (43... Bxb5 {was called for.} 44. Bxd5 (44. Kxd5 Rd7+ 45. Ke6 a5 $18) 44... Ra7) 44. g4 {[%emt 0:00:31]} (44. Bxd5 $2 Rd7 45. Ke3 Bxd5 $19 (45... Rxd5 $2 46. Rg1 $19)) 44... fxg4 {[%emt 0:02:47]} 45. Bxg4 {[%emt 0:00:03]} (45. Bxd5 $2 Rd7 46. Rg1 Rxd5+ $19 (46... Bxd5 $2 47. f5 $19)) 45... Re8 {[%emt 0:01:22]} 46. f5 {[%emt 0:01:28]} Re7 {[%emt 0:00:13]} 47. Bh3 {[%emt 0:00:39]} Be8 {[%emt 0:00:18]} 48. Bg4 {[%emt 0:00:37]} (48. Kxd5 Bc6+ 49. Kd6 Rd7+ 50. Ke6 Rd2 $18) 48... Bc6 $1 {[%emt 0:00:04]} 49. e6 {[%emt 0:00:54] White is clearly winning.} Bb7 {[%emt 0:00:38]} 50. Bf3 {[%emt 0:00:23]} Re8 {[%emt 0:00:11]} 51. Rg1 {[%emt 0:00:04] Weighted Error Value: White=0.32/Black=0.37.  Mistake:       	White=3     	Black=8      Inaccurate:     	White=1     	Black=3      OK:         	White=19    	Black=11     Best:        	White=3     	Black=2} (51. Bxd5 $2 {is the wrong capture.} Rd8 52. Ke4 Rxd5 $19 (52... Bxd5+ 53. Ke5 $17)) 1-0